bitfinex/quotes_BTCUSD_20251114
["timestamp","ask_amount","ask_price","bid_price","bid_amount"]
[1763132577149,0.06929313,96248.0,96246.0,0.20780079]
[1763132577357,0.06929313,96248.0,96221.0,0.323]
[1763132577573,0.06929313,96248.0,96221.0,0.20785483]
[1763132577574,0.20783215,96232.0,96221.0,0.20785483]
[1763132577778,0.04956,96222.0,96221.0,0.20785483]
[1763132578018,0.20785483,96221.0,96210.0,0.01039392]
[1763132578237,0.18018,96222.0,96210.0,0.01039392]
[1763132578454,0.20788008,96210.0,96200.0,0.00044]
[1763132578690,0.06884,96209.0,96200.0,0.20833804]
[1763132578899,0.06884,96209.0,96207.0,0.20788471]
[1763132579110,0.06884,96209.0,96201.0,0.0208338]
[1763132579322,0.06178,96201.0,96200.0,0.00044]
[1763132579738,0.06178,96201.0,96200.0,0.00057583]
[1763132579974,0.13062,96201.0,96200.0,0.00057583]
[1763132580613,0.06884,96201.0,96200.0,0.00057583]
[1763132580816,0.06308,96201.0,96200.0,0.00057583]
[1763132581018,0.13192,96201.0,96200.0,0.00057583]
[1763132581655,0.33981804,96201.0,96200.0,0.00057583]
[1763132581880,0.06308,96201.0,96200.0,0.00057583]
[1763132582088,0.33981804,96201.0,96200.0,0.00057583]
[1763132582291,0.80990616,96201.0,96200.0,0.00057583]
[1763132582506,0.36641874,96199.0,96170.0,0.0004]
[1763132582722,0.323,96197.0,96170.0,0.00053572]
[1763132583178,0.04973,96198.0,96197.0,0.20790669]
[1763132583396,0.00999999,96260.0,96180.0,0.10479654]
[1763132583397,0.09119,96228.0,96220.0,0.20785644]
[1763132583605,0.06884,96221.0,96201.0,0.323]
[1763132583827,0.06884,96221.0,96200.0,0.01039501]
[1763132583828,0.36844285,96220.0,96200.0,0.01039501]
[1763132584033,0.36844285,96220.0,96190.0,0.01039609]
[1763132584258,0.04973,96191.0,96187.0,0.03121876]
[1763132584477,0.04973,96191.0,96180.0,0.10479654]
[1763132584688,0.04973,96191.0,96187.0,0.00013572]
[1763132584902,0.06884,96190.0,96187.0,0.00013572]
[1763132585338,0.12484,96208.0,96187.0,0.00013572]
[1763132585339,0.09119,96218.0,96190.0,0.01039609]
[1763132585556,0.12484,96214.0,96191.0,0.01153284]
[1763132585792,0.06884,96213.0,96190.0,0.01039609]
[1763132586005,0.06884,96213.0,96191.0,0.20791965]
[1763132586224,0.36844285,96210.0,96187.0,0.00013572]
[1763132586514,0.27100614,96188.0,96187.0,0.00013572]
[1763132586711,0.33984614,96188.0,96187.0,0.00013572]
[1763132586918,0.06308,96188.0,96187.0,0.00013572]
[1763132587126,0.13192,96188.0,96187.0,0.00013572]
[1763132587331,0.06308,96188.0,96187.0,0.00013572]
[1763132587538,0.13192,96188.0,96187.0,0.00013572]
[1763132587747,0.39184,96188.0,96187.0,0.00013572]
[1763132588164,0.51668,96188.0,96187.0,0.00013572]
[1763132588579,0.51668,96188.0,96187.0,0.00335699]
[1763132588789,0.56009874,96188.0,96187.0,0.00335699]
[1763132589062,0.36641874,96188.0,96187.0,0.00335699]
[1763132589263,0.56009874,96188.0,96187.0,0.00335699]
[1763132589472,0.36641874,96188.0,96187.0,0.00335699]
[1763132589682,0.56109874,96188.0,96187.0,0.00335699]
[1763132590133,0.56009874,96188.0,96187.0,0.00335699]
[1763132590349,0.56009874,96188.0,96170.0,0.0004]
[1763132590350,0.20796289,96171.0,96170.0,0.0004]
[1763132590585,0.32334289,96171.0,96170.0,0.00053644]
[1763132590811,0.18053,96171.0,96170.0,0.00053644]
[1763132591472,0.18053,96171.0,96170.0,0.00099699]
[1763132591926,0.06888,96171.0,96170.0,0.00099699]
[1763132592589,0.06988,96171.0,96170.0,0.00099699]
[1763132593038,0.06888,96171.0,96170.0,0.10579353]
[1763132593262,0.06888,96171.0,96170.0,0.00099699]
[1763132593263,0.13403,96171.0,96170.0,0.00099699]
[1763132594318,0.06888,96171.0,96170.0,0.00099699]
[1763132595697,0.06888,96171.0,96170.0,0.02189347]
[1763132596060,0.06888,96171.0,96170.0,0.00099699]
[1763132596284,0.09383,96212.0,96197.0,0.20790669]
[1763132596485,0.06888,96200.0,96179.0,0.10479654]
[1763132596696,0.20792391,96190.0,96179.0,0.10479654]
[1763132596900,0.20793627,96184.0,96170.0,0.01093469]
[1763132597143,0.06888,96189.0,96170.0,0.01093469]
[1763132597144,0.06888,96189.0,96173.0,0.10479654]
[1763132597344,0.06888,96189.0,96187.0,0.20792825]
[1763132597547,0.06888,96189.0,96173.0,0.10479654]
[1763132597722,0.06888,96189.0,96187.0,0.20792677]
[1763132597961,0.06888,96189.0,96173.0,0.10479654]
[1763132597962,0.07196161,96199.0,96173.0,0.10479654]
[1763132598168,0.07196161,96199.0,96196.0,0.20790711]
[1763132598374,0.07196161,96199.0,96196.0,0.20790774]
[1763132598800,0.001,96200.0,96199.0,0.20790236]
[1763132599022,0.0465,96217.0,96211.0,0.20787539]
[1763132599232,0.0465,96217.0,96215.0,0.20786589]
[1763132599441,0.0465,96217.0,96199.0,0.04158081]
[1763132599652,0.0465,96225.0,96220.0,0.20785686]
[1763132599869,0.0465,96225.0,96224.0,0.20784835]
[1763132600079,0.00157395,96229.0,96228.0,0.20783971]
[1763132600317,0.00170988,96229.0,96227.0,0.20784183]
[1763132600524,0.00170988,96229.0,96212.0,0.10479654]
[1763132600755,0.00170988,96229.0,96213.0,0.04732394]
[1763132600962,0.00170988,96229.0,96227.0,0.20784043]
[1763132601367,0.00170988,96229.0,96228.0,0.42779654]
[1763132601486,0.0465,96265.0,96264.0,0.20776198]
[1763132601705,0.01984306,96265.0,96264.0,0.20776198]
[1763132601946,0.01984306,96265.0,96264.0,0.22853818]
[1763132602155,0.00045377,96265.0,96264.0,0.22853818]
[1763132602356,0.00045377,96265.0,96264.0,0.55153818]
[1763132602560,0.00145377,96265.0,96250.0,0.03119484]
[1763132602759,0.00145377,96265.0,96263.0,0.20776276]
[1763132603314,0.00045377,96265.0,96263.0,0.20776276]
[1763132603518,0.00045377,96265.0,96264.0,0.08310721]
[1763132604094,0.00045377,96265.0,96263.0,0.20776262]
[1763132604296,0.20776785,96262.0,96240.0,0.01039068]
[1763132604524,0.20776198,96264.0,96240.0,0.01039068]
[1763132604525,0.00045377,96265.0,96248.0,0.323]
[1763132604703,0.00045377,96265.0,96264.0,0.31255852]
[1763132605334,0.00045377,96265.0,96264.0,0.63555852]
[1763132607300,0.00142779,96265.0,96264.0,0.63555852]
[1763132608442,0.00142779,96265.0,96264.0,0.63655852]
[1763132609078,0.00142779,96265.0,96264.0,0.31255852]
[1763132609764,0.00142779,96265.0,96240.0,0.01039068]
[1763132609979,0.20821485,96265.0,96240.0,0.62836686]
[1763132610185,0.00045377,96265.0,96264.0,0.20776198]
[1763132610421,0.00045377,96265.0,96248.0,0.01047965]
[1763132610422,0.20776337,96264.0,96254.0,0.2077831]
[1763132610629,0.00045377,96265.0,96244.0,0.20780514]
[1763132610833,0.00045377,96265.0,96230.0,0.62836794]
[1763132610834,0.04836,96249.0,96230.0,0.01039176]
[1763132611055,0.06049,96245.0,96210.0,0.01039392]
[1763132611279,0.02011068,96240.0,96210.0,0.01039392]
[1763132611483,0.20781981,96238.0,96226.0,0.20784197]
[1763132611696,0.323,96254.0,96228.0,0.20783971]
[1763132611908,0.09604,96246.0,96227.0,0.10479654]
[1763132612149,0.30384246,96246.0,96228.0,0.20783925]
[1763132612373,0.09604,96258.0,96247.0,0.20779762]
[1763132612582,0.04836,96264.0,96242.0,0.10479654]
[1763132612785,0.07433024,96264.0,96243.0,0.01151872]
[1763132613023,0.07433024,96264.0,96263.0,0.20776414]
[1763132613235,0.04836,96273.0,96263.0,0.20776414]
[1763132613441,0.04836,96277.0,96263.0,0.20776414]
[1763132614290,0.23370383,96276.0,96263.0,0.20776414]
[1763132614491,0.20771076,96288.0,96263.0,0.20776414]
[1763132614707,0.20770884,96289.0,96263.0,0.20776414]
[1763132614921,0.09604,96294.0,96263.0,0.20776414]
[1763132615123,0.00145377,96265.0,96263.0,0.20776414]
[1763132615544,0.00094698,96264.0,96263.0,0.20776414]
[1763132616390,0.00094698,96264.0,96257.0,0.3125709]
[1763132616391,0.00094698,96264.0,96257.0,0.10479654]
[1763132616596,0.00045377,96265.0,96257.0,0.10479654]
[1763132616833,0.00045377,96265.0,96243.0,0.323]
[1763132617032,0.00045377,96265.0,96264.0,0.20776198]
[1763132617245,0.30380198,96264.0,96263.0,0.001]
[1763132617651,0.36429198,96264.0,96263.0,0.001]
[1763132618035,0.15653,96264.0,96263.0,0.001]
[1763132618290,0.73071072,96264.0,96227.0,0.01151894]
[1763132618501,0.06049,96228.0,96200.0,0.01039501]
[1763132618720,0.04836,96215.0,96200.0,0.01039501]
[1763132619135,0.20787353,96213.0,96200.0,0.01039501]
[1763132619369,0.09604,96214.0,96180.0,0.01039717]
[1763132619576,0.04836,96215.0,96170.0,0.10228011]
[1763132619577,0.04836,96196.0,96188.0,0.10479654]
[1763132619794,0.20792509,96189.0,96187.0,0.00171022]
[1763132620009,0.20792528,96189.0,96187.0,0.00171022]
[1763132620214,0.20792528,96189.0,96162.0,0.03122396]
[1763132620215,0.2079802,96163.0,96162.0,0.03122396]
[1763132620429,0.01039609,96190.0,96162.0,0.00013644]
[1763132620430,0.04836,96175.0,96162.0,0.00013644]
[1763132620673,0.2079656,96170.0,96162.0,0.00013644]
[1763132620893,0.20797763,96165.0,96162.0,0.00013644]
[1763132621124,0.04836,96163.0,96162.0,0.00013644]
[1763132621390,0.20793529,96184.0,96172.0,0.20795965]
[1763132621595,0.20793535,96184.0,96173.0,0.02079597]
[1763132621815,0.04836,96185.0,96163.0,0.10479654]
[1763132622262,0.04836,96185.0,96183.0,0.20793584]
[1763132622483,0.323,96198.0,96193.0,0.20791409]
[1763132622698,0.20792705,96188.0,96183.0,0.02081796]
[1763132622913,0.09604,96200.0,96184.0,0.20793479]
[1763132623123,0.67178884,96210.0,96178.0,0.0002438]
[1763132623124,0.001,96185.0,96178.0,0.20819019]
[1763132623342,0.001,96185.0,96182.0,0.20793861]
[1763132623564,0.09604,96195.0,96178.0,0.0002438]
[1763132623785,0.09604,96187.0,96178.0,0.00038024]
[1763132624014,0.2079456,96179.0,96178.0,0.00038024]
[1763132624696,0.20794555,96180.0,96178.0,0.00038024]
[1763132625593,0.33339501,96200.0,96178.0,0.00038024]
[1763132625816,0.09604,96190.0,96178.0,0.20832628]
[1763132626065,0.09604,96190.0,96160.0,0.01039933]
[1763132626281,0.00013603,96190.0,96189.0,0.20792398]
[1763132626486,0.00013603,96190.0,96187.0,0.20792658]
[1763132626700,0.00013603,96190.0,96187.0,0.22871924]
[1763132626907,0.00013603,96190.0,96189.0,0.20792398]
[1763132627149,0.00113603,96190.0,96189.0,0.31272052]
[1763132627581,0.00113603,96190.0,96189.0,0.63572052]
[1763132627985,0.00113603,96190.0,96189.0,0.70456052]
[1763132628199,0.00113603,96190.0,96189.0,0.74797926]
[1763132628842,0.01038853,96260.0,96189.0,0.74797926]
[1763132628843,0.20778092,96256.0,96228.0,0.20783971]
[1763132629057,0.00171014,96229.0,96228.0,0.20783971]
[1763132629502,0.00171014,96229.0,96228.0,0.53083971]
[1763132631022,0.09604,96287.0,96240.0,0.01039068]
[1763132631247,0.20775066,96270.0,96250.0,0.01038961]
[1763132631455,0.04881406,96282.0,96250.0,0.01038961]
[1763132631456,0.20776439,96263.0,96250.0,0.01038961]
[1763132631672,0.01038637,96280.0,96249.0,0.10479654]
[1763132631673,0.20776193,96265.0,96249.0,0.10479654]
[1763132631886,0.00135293,96270.0,96249.0,0.10479654]
[1763132632147,0.00135293,96270.0,96264.0,0.10479654]
[1763132632370,0.00135293,96270.0,96264.0,0.01047965]
[1763132632597,0.00135293,96270.0,96231.0,0.0688]
[1763132632598,0.02146038,96270.0,96242.0,0.10479654]
[1763132632814,0.20777039,96261.0,96242.0,0.10479654]
[1763132633049,0.00135293,96270.0,96257.0,0.10479654]
[1763132633261,0.00135293,96270.0,96262.0,0.20776418]
[1763132633473,0.20776198,96264.0,96263.0,0.03125607]
[1763132633690,0.20775767,96268.0,96257.0,0.10479654]
[1763132633908,0.20775767,96268.0,96241.0,0.20781103]
[1763132633909,0.04836,96258.0,96243.0,0.10479654]
[1763132634350,0.04836,96258.0,96245.0,0.10479654]
[1763132634351,0.20780084,96246.0,96245.0,0.10479654]
[1763132634562,0.04836,96258.0,96220.0,0.01039284]
[1763132634563,0.20782186,96237.0,96220.0,0.01039284]
[1763132634779,0.20779945,96247.0,96229.0,0.01050167]
[1763132635025,0.20780497,96245.0,96243.0,0.10479654]
[1763132635243,0.1444,96258.0,96233.0,0.20782733]
[1763132635244,0.20781552,96240.0,96233.0,0.20782733]
[1763132635450,0.2078106,96242.0,96233.0,0.20782755]
[1763132635659,0.20781163,96241.0,96234.0,0.20782489]
[1763132635850,0.00045377,96242.0,96234.0,0.20782489]
[1763132636116,0.00045377,96242.0,96240.0,0.20781329]
[1763132636324,0.00045377,96242.0,96229.0,0.001]
[1763132636543,0.20783539,96230.0,96228.0,0.00022016]
[1763132636996,0.02597969,96229.0,96228.0,0.00022016]
[1763132637235,0.01039284,96220.0,96196.0,0.20790885]
[1763132637444,0.01039284,96220.0,96195.0,0.01363153]
[1763132637445,0.02011284,96220.0,96195.0,0.01363153]
[1763132637680,0.04836,96219.0,96196.0,0.01184281]
[1763132638101,0.25622131,96219.0,96218.0,0.00027072]
[1763132638312,0.04836,96219.0,96201.0,0.20789784]
[1763132638543,0.04836,96219.0,96197.0,0.20790669]
[1763132638544,0.04836,96219.0,96203.0,0.20789192]
[1763132638757,0.20788667,96207.0,96201.0,0.20789692]
[1763132639186,0.20788667,96207.0,96206.0,0.00032492]
[1763132639410,0.20788205,96209.0,96206.0,0.0211471]
[1763132639626,0.20786131,96218.0,96200.0,0.20789883]
[1763132639880,0.20788451,96208.0,96202.0,0.20789473]
[1763132640091,0.20787752,96211.0,96202.0,0.20789382]
[1763132640305,0.20788435,96208.0,96207.0,0.00029784]
[1763132640744,0.20788029,96210.0,96207.0,0.00029784]
[1763132640960,0.30707165,96214.0,96208.0,0.02081915]
[1763132641211,0.04854,96225.0,96211.0,0.10479654]
[1763132641432,0.04854,96225.0,96223.0,0.20784927]
[1763132641650,0.04854,96225.0,96211.0,0.10479654]
[1763132641651,0.20789692,96202.0,96200.0,0.00013619]
[1763132641877,0.0992,96224.0,96200.0,0.00013619]
[1763132641878,0.61797618,96220.0,96200.0,0.00013619]
[1763132642099,0.04854,96225.0,96218.0,0.20785943]
[1763132642313,0.04854,96233.0,96230.0,0.20783372]
[1763132642537,0.20784568,96226.0,96215.0,0.20786669]
[1763132642785,0.01039176,96230.0,96202.0,0.001]
[1763132642995,0.4222,96229.0,96205.0,0.10479654]
[1763132643217,0.04341874,96243.0,96205.0,0.10479654]
[1763132643218,0.20781684,96239.0,96226.0,0.2078426]
[1763132643430,0.0992,96255.0,96235.0,0.10479654]
[1763132643644,0.20782148,96237.0,96235.0,0.10479654]
[1763132643858,0.20781542,96240.0,96233.0,0.20782807]
[1763132644068,0.20781542,96240.0,96220.0,0.11518938]
[1763132644069,0.0992,96249.0,96228.0,0.20783961]
[1763132644295,0.0992,96249.0,96220.0,0.11518938]
[1763132644296,0.0992,96249.0,96220.0,0.10479654]
[1763132644509,0.04854,96221.0,96206.0,0.20788637]
[1763132644725,0.04899377,96221.0,96192.0,0.323]
[1763132644968,0.71717618,96220.0,96193.0,0.04381926]
[1763132645180,0.0992,96219.0,96194.0,0.2079112]
[1763132645400,0.20793105,96186.0,96182.0,0.1466]
[1763132645609,0.20793105,96186.0,96170.0,0.10479654]
[1763132645610,0.04854,96195.0,96170.0,0.10479654]
[1763132645826,0.04854,96195.0,96171.0,0.01047965]
[1763132646031,0.04854,96195.0,96185.0,0.10479654]
[1763132646249,0.0992,96211.0,96185.0,0.10479654]
[1763132646451,0.20788831,96206.0,96185.0,0.10479654]
[1763132646686,0.04341874,96217.0,96186.0,0.01151937]
[1763132646890,0.36641874,96217.0,96186.0,0.01151937]
[1763132647094,0.35048653,96216.0,96186.0,0.01151937]
[1763132647310,0.10479654,96214.0,96186.0,0.01151937]
[1763132647546,0.0992,96215.0,96190.0,0.01039609]
[1763132647978,0.0992,96215.0,96206.0,0.20788585]
[1763132648194,0.0992,96215.0,96190.0,0.01039609]
[1763132648399,0.04854,96221.0,96201.0,0.10479654]
[1763132648601,0.01157325,96260.0,96216.0,0.10479654]
[1763132648602,0.0992,96242.0,96216.0,0.10479654]
[1763132648831,0.04779,96227.0,96216.0,0.10479654]
[1763132649043,0.04779,96227.0,96217.0,0.20786218]
[1763132649292,0.04779,96227.0,96216.0,0.10479654]
[1763132649293,0.04779,96227.0,96222.0,0.20785126]
[1763132649511,0.04854,96231.0,96230.0,0.20783539]
[1763132649717,0.04779,96243.0,96231.0,0.20783323]
[1763132649937,0.04779,96243.0,96226.0,0.20784403]
[1763132649938,0.00045377,96243.0,96241.0,0.20781163]
[1763132650144,0.00045377,96243.0,96242.0,0.06234383]
[1763132650768,0.00045377,96243.0,96242.0,0.38534383]
[1763132652095,1e-08,96243.0,96242.0,0.43076257]
[1763132652301,0.0002,96300.0,96299.0,0.20768647]
[1763132652510,0.00033613,96300.0,96299.0,0.20768647]
[1763132652719,0.00033613,96300.0,96299.0,0.22763357]
[1763132652960,0.00033613,96300.0,96297.0,0.20768902]
[1763132653175,0.00141781,96300.0,96270.0,0.07837175]
[1763132653398,0.20774688,96271.0,96270.0,0.07837175]
[1763132653622,0.323,96297.0,96270.0,0.07837175]
[1763132653856,0.0002,96300.0,96288.0,0.20770912]
[1763132654059,0.0002,96300.0,96270.0,0.01038745]
[1763132654060,0.20771299,96287.0,96276.0,0.20773432]
[1763132654293,0.09053,96299.0,96262.0,0.20776496]
[1763132654294,0.00029755,96271.0,96262.0,0.20776496]
[1763132654516,0.20773609,96276.0,96270.0,0.10479654]
[1763132654720,0.20788458,96271.0,96265.0,0.10479654]
[1763132654911,0.00013608,96271.0,96270.0,0.001]
[1763132655933,0.00013608,96271.0,96269.0,0.20775066]
[1763132656329,0.00013608,96271.0,96270.0,0.002]
[1763132656881,0.00013608,96271.0,96270.0,0.005]
[1763132657088,0.00013608,96271.0,96270.0,0.07830618]
[1763132657251,0.00013608,96271.0,96270.0,0.28605521]
[1763132657686,0.00013608,96271.0,96270.0,0.28405521]
[1763132658124,0.00013608,96271.0,96270.0,0.07630618]
[1763132658333,0.00013608,96271.0,96270.0,0.21074903]
[1763132658642,0.00013608,96271.0,96270.0,0.003]
[1763132658843,0.00013608,96271.0,96270.0,0.21274903]
[1763132659249,0.00013608,96271.0,96267.0,0.20775551]
[1763132659454,0.00013608,96271.0,96269.0,0.20775119]
[1763132659616,0.00013608,96271.0,96270.0,0.004]
[1763132659816,0.00013608,96271.0,96270.0,0.327]
[1763132659995,0.00043363,96271.0,96270.0,0.327]
[1763132660223,0.00043363,96271.0,96270.0,0.324]
[1763132660557,0.00043363,96271.0,96270.0,0.34395841]
[1763132660954,0.00043363,96271.0,96270.0,0.34295841]
[1763132661190,0.00043363,96271.0,96270.0,0.34595841]
[1763132661606,0.00043363,96271.0,96270.0,0.02295841]
[1763132661815,0.00043363,96271.0,96270.0,0.003]
[1763132662043,0.20818051,96271.0,96270.0,0.004]
[1763132662361,0.00043363,96271.0,96246.0,0.20779916]
[1763132662565,0.00043363,96271.0,96229.0,0.10479654]
[1763132662566,0.04779,96247.0,96229.0,0.10479654]
[1763132662781,0.04779,96247.0,96221.0,0.20785293]
[1763132663016,0.01039068,96240.0,96218.0,0.0015736]
[1763132663221,0.10092068,96240.0,96218.0,0.0015736]
[1763132663643,0.20785915,96219.0,96218.0,0.0015736]
[1763132664100,0.20785915,96219.0,96218.0,0.00202737]
[1763132664342,0.01039392,96210.0,96179.0,0.3913]
[1763132664566,0.01039392,96210.0,96170.0,0.11519479]
[1763132664567,0.01039392,96210.0,96189.0,0.20792339]
[1763132664779,0.20790371,96199.0,96190.0,0.2079205]
[1763132665001,0.20789966,96201.0,96191.0,0.20791751]
[1763132665218,0.10092392,96210.0,96185.0,0.10493273]
[1763132665436,0.10092392,96210.0,96185.0,0.00013619]
[1763132665653,0.10092392,96210.0,96186.0,0.10479654]
[1763132665873,0.10025,96210.0,96190.0,0.001]
[1763132666077,0.04341874,96218.0,96190.0,0.001]
[1763132666290,0.20791536,96193.0,96191.0,0.03338656]
[1763132666507,0.00972,96210.0,96190.0,0.001]
[1763132666743,0.01039068,96240.0,96192.0,0.10479654]
[1763132666959,0.20790254,96199.0,96192.0,0.31271275]
[1763132667180,0.06790284,96220.0,96192.0,0.10479654]
[1763132667385,0.06790284,96220.0,96193.0,0.01047965]
[1763132667386,0.20789668,96202.0,96193.0,0.01047965]
[1763132667585,0.20791679,96193.0,96191.0,0.002]
[1763132667790,0.20787211,96216.0,96192.0,0.10479654]
[1763132668003,0.20791533,96193.0,96191.0,0.002]
[1763132668214,0.04779,96192.0,96191.0,0.002]
[1763132668428,0.04341874,96215.0,96191.0,0.10479654]
[1763132668632,0.20788075,96209.0,96192.0,0.01047965]
[1763132668836,0.20790273,96199.0,96192.0,0.01147965]
[1763132669070,0.00972,96210.0,96197.0,0.20790549]
[1763132669292,0.00972,96210.0,96186.0,0.10479654]
[1763132669293,0.001,96216.0,96215.0,0.20786779]
[1763132669534,0.001,96216.0,96214.0,0.03014]
[1763132669965,0.001,96216.0,96208.0,0.53088075]
[1763132670181,0.001,96216.0,96215.0,0.323]
[1763132670389,0.00157326,96260.0,96230.0,0.01039176]
[1763132670608,0.00202712,96260.0,96253.0,0.10479654]
[1763132671036,0.00202712,96260.0,96238.0,0.10479654]
[1763132671240,0.00202712,96260.0,96239.0,0.01047965]
[1763132671445,0.37099665,96260.0,96238.0,0.10479654]
[1763132671649,0.20781304,96241.0,96238.0,0.10479654]
[1763132671869,0.20781536,96240.0,96238.0,0.10479654]
[1763132672085,0.20780063,96247.0,96239.0,0.20781446]
[1763132672318,0.20780063,96247.0,96238.0,0.10479654]
[1763132672319,0.20781498,96240.0,96238.0,0.10579654]
[1763132672520,0.20777493,96258.0,96238.0,0.10479654]
[1763132672753,0.20781503,96240.0,96238.0,0.10479654]
[1763132672960,0.38138518,96260.0,96238.0,0.10479654]
[1763132672961,0.38138518,96260.0,96241.0,0.20781058]
[1763132673170,0.01961699,96259.0,96238.0,0.10479654]
[1763132673393,0.01961699,96259.0,96242.0,0.20780936]
[1763132673394,0.11772699,96259.0,96242.0,0.20780936]
[1763132673598,0.11772699,96259.0,96239.0,0.10479654]
[1763132673599,0.20777821,96257.0,96239.0,0.10479654]
[1763132673809,0.0259724,96256.0,96239.0,0.10479654]
[1763132674016,0.01241565,96260.0,96258.0,0.20777469]
[1763132674017,0.00202712,96260.0,96258.0,0.20777469]
[1763132674644,0.00202712,96260.0,96259.0,0.323]
[1763132674859,0.00202712,96260.0,96259.0,0.38327]
[1763132675061,0.00202712,96260.0,96259.0,0.55426374]
[1763132675265,0.00202712,96260.0,96259.0,0.54690075]
[1763132675713,0.0002,96300.0,96259.0,0.54690075]
[1763132675928,0.00033615,96300.0,96284.0,0.10479654]
[1763132676120,0.00033615,96300.0,96299.0,0.10479654]
[1763132676325,0.20802262,96300.0,96285.0,0.323]
[1763132676530,0.00033615,96300.0,96290.0,0.20770437]
[1763132676736,0.00033615,96300.0,96270.0,0.01038745]
[1763132676737,0.20772675,96281.0,96270.0,0.01038745]
[1763132676995,0.2076961,96295.0,96285.0,0.20771517]
[1763132677165,0.20771667,96285.0,96284.0,0.10479654]
[1763132677388,0.09811,96299.0,96275.0,0.323]
[1763132677571,0.20774737,96271.0,96260.0,0.20776869]
[1763132677777,0.2077404,96274.0,96270.0,0.01047965]
[1763132677981,0.04819,96285.0,96270.0,0.01047965]
[1763132677982,0.04819,96285.0,96270.0,0.001]
[1763132678186,0.2077458,96272.0,96270.0,0.001]
[1763132678620,0.2077808,96256.0,96239.0,0.20781163]
[1763132678836,0.20777851,96257.0,96253.0,0.10479654]
[1763132679054,0.0001361,96272.0,96253.0,0.10479654]
[1763132679507,0.0001361,96272.0,96237.0,0.10479654]
[1763132679508,0.04819,96254.0,96237.0,0.10479654]
[1763132679961,0.323,96249.0,96216.0,0.10479654]
[1763132680180,0.323,96249.0,96221.0,0.20785475]
[1763132680181,0.20784162,96228.0,96221.0,0.20785475]
[1763132680397,0.20784162,96228.0,96222.0,0.05205138]
[1763132680398,0.20785026,96224.0,96222.0,0.05205138]
[1763132680606,0.36896953,96240.0,96218.0,0.31265652]
[1763132680607,0.20785438,96222.0,96218.0,0.10479654]
[1763132681048,0.20784751,96225.0,96218.0,0.10479654]
[1763132681258,0.02011068,96240.0,96218.0,0.10479654]
[1763132681259,0.20785215,96223.0,96218.0,0.10479654]
[1763132681673,0.000136,96225.0,96222.0,0.002]
[1763132681879,0.000136,96225.0,96218.0,0.31422968]
[1763132682119,0.20798361,96225.0,96220.0,0.2078559]
[1763132682355,0.20798361,96225.0,96219.0,0.20785723]
[1763132682570,0.000136,96225.0,96218.0,0.10837015]
[1763132682783,0.20785866,96220.0,96218.0,0.00357361]
[1763132682995,0.04819,96219.0,96218.0,0.00357361]
[1763132683210,0.20785915,96219.0,96218.0,0.0247174]
[1763132683418,0.20785915,96219.0,96218.0,0.00457361]
[1763132683863,0.20785915,96219.0,96218.0,0.00357361]
[1763132684086,0.20785915,96219.0,96218.0,0.00157361]
[1763132684543,0.20785915,96219.0,96218.0,0.00557361]
[1763132684720,0.20792429,96189.0,96177.0,0.10479654]
[1763132684940,0.2079296,96187.0,96181.0,0.20794093]
[1763132685135,0.20785915,96219.0,96177.0,0.10479654]
[1763132685136,0.20791101,96195.0,96177.0,0.10479654]
[1763132685346,0.04819,96196.0,96166.0,0.12162186]
[1763132685347,0.04819,96196.0,96166.0,0.03014]
[1763132685552,0.09811,96195.0,96179.0,0.10479654]
[1763132685778,0.10479654,96209.0,96194.0,0.10479654]
[1763132685779,0.04819,96209.0,96194.0,0.10479654]
[1763132685973,0.25603309,96227.0,96200.0,0.01039501]
[1763132685974,0.04819,96227.0,96200.0,0.01039501]
[1763132686182,0.02011284,96220.0,96195.0,0.01047965]
[1763132686383,0.02011284,96220.0,96180.0,0.01039717]
[1763132686384,0.2079057,96198.0,96190.0,0.20792038]
[1763132686595,0.09911,96219.0,96190.0,0.20792038]
[1763132686739,0.20791852,96192.0,96186.0,0.20792874]
[1763132686962,0.01039392,96210.0,96179.0,0.1052504]
[1763132686963,0.01039501,96200.0,96179.0,0.00045386]
[1763132687186,0.02011501,96200.0,96185.0,0.20793134]
[1763132687383,0.02011501,96200.0,96187.0,0.20792712]
[1763132687384,0.20791813,96192.0,96187.0,0.20792712]
[1763132687593,0.20792068,96191.0,96184.0,0.20793456]
[1763132687916,0.2079264,96188.0,96186.0,0.001]
[1763132688115,0.09811,96202.0,96183.0,0.20793674]
[1763132688430,0.09811,96202.0,96179.0,0.00045386]
[1763132688431,0.2079221,96190.0,96179.0,0.00045386]
[1763132688824,0.36641874,96219.0,96190.0,0.01039609]
[1763132689032,0.20788607,96207.0,96202.0,0.20789525]
[1763132689249,0.20788096,96209.0,96203.0,0.20789268]
[1763132689460,0.20786563,96216.0,96190.0,0.20792017]
[1763132689685,0.5152743,96210.0,96180.0,0.10479654]
[1763132689897,0.01039501,96200.0,96173.0,0.10479654]
[1763132690118,0.20794215,96181.0,96173.0,0.31275332]
[1763132690328,0.20794215,96181.0,96173.0,0.10479654]
[1763132690543,0.20794215,96181.0,96161.0,0.09148186]
[1763132690760,0.00972,96180.0,96160.0,0.0004]
[1763132690977,0.04819,96180.0,96160.0,0.0004]
[1763132691187,0.05791,96180.0,96179.0,0.00151014]
[1763132691402,0.41460874,96180.0,96179.0,0.00016014]
[1763132691608,0.42432874,96180.0,96179.0,0.00116014]
[1763132691824,0.41460874,96180.0,96179.0,0.00016014]
[1763132692239,0.51827812,96180.0,96179.0,0.00016014]
[1763132692447,0.41460874,96180.0,96179.0,0.00016014]
[1763132692921,0.41460874,96180.0,96160.0,0.0004]
[1763132692922,0.57440326,96161.0,96160.0,0.0004]
[1763132693056,0.57440326,96161.0,96160.0,0.00053603]
[1763132693057,0.61991326,96161.0,96160.0,0.00053603]
[1763132693872,0.04551,96161.0,96160.0,0.00053603]
[1763132694682,0.04651,96161.0,96160.0,0.20852271]
[1763132695160,0.001,96161.0,96160.0,0.25041462]
[1763132695366,0.001,96161.0,96160.0,0.57341462]
[1763132695784,0.20789251,96204.0,96160.0,0.57341462]
[1763132695785,0.04819,96213.0,96180.0,0.01039717]
[1763132695998,0.02420099,96211.0,96192.0,0.20791624]
[1763132696190,0.20789732,96202.0,96180.0,0.01039717]
[1763132696396,0.04819,96213.0,96185.0,0.10479654]
[1763132696655,0.02598455,96211.0,96209.0,0.20787931]
[1763132696854,0.04819,96213.0,96209.0,0.20788034]
[1763132697175,0.02698428,96212.0,96190.0,0.01039609]
[1763132697354,0.01685724,96212.0,96204.0,0.20789098]
[1763132697564,0.01585724,96212.0,96204.0,0.03126875]
[1763132697767,0.20790403,96199.0,96166.0,0.41594414]
[1763132697981,0.001,96211.0,96175.0,0.31193061]
[1763132697982,0.20789566,96203.0,96175.0,0.31193061]
[1763132698126,0.09911,96211.0,96191.0,0.20791965]